fUSD/lending_fUSD_20240909
["ID","MTS","AMOUNT","RATE_DAILY","PERIOD"]
[337642357,1725904270676,-1059.29,0.00014794,2]
[337642358,1725904270685,-975.77,0.00014794,2]
[337642359,1725904270695,-6652.98,0.00014794,2]
[337642360,1725904270705,-2315.69600327,0.00014794,2]
[337642361,1725904270714,-1613.99,0.00014794,2]
[337642362,1725904270723,-1059.29,0.00014794,2]
[337642363,1725904270733,-500.0,0.00014794,2]
[337642364,1725904270743,-975.77,0.00014794,2]
[337642365,1725904270752,-2071.32,0.00014794,2]
[337642366,1725904270769,-6652.98,0.00014794,2]
[337642367,1725904270779,-1059.29,0.00014794,2]
[337642368,1725904270787,-500.0,0.00014794,2]
[337642369,1725904270797,-1613.99,0.00014794,2]
[337642370,1725904270807,-6652.98,0.00014794,2]
[337642371,1725904270816,-500.0,0.00014794,2]
[337642372,1725904270826,-1059.29,0.00014794,2]
[337642373,1725904270835,-2071.32,0.00014794,2]
[337642374,1725904270844,-975.77,0.00014794,2]
[337642375,1725904270958,-1613.99,0.00014794,2]
[337642376,1725904270973,-6653.0664572,0.00014794,2]
[337642377,1725904270982,-500.0,0.00014794,2]
[337642378,1725904270991,-290.31259663,0.00014794,2]
[337642379,1725904271000,-2071.32,0.00014794,2]
[337642380,1725904271009,-975.77,0.00014794,2]
[337642381,1725904271018,-1059.29,0.00014794,2]
[337642382,1725904271028,-1613.99,0.00014794,2]
[337642383,1725904271037,-479.7190442,0.00014794,2]
[337642384,1725904271046,-2071.32,0.00014794,2]
[337642385,1725904271056,-975.77,0.00014794,2]
[337642386,1725904271066,-1059.29,0.00014794,2]
[337642387,1725904271075,-1613.99,0.00014794,2]
[337642388,1725904271084,-2071.32,0.00014794,2]
[337642389,1725904271094,-975.77,0.00014794,2]
[337642390,1725904271103,-1059.29,0.00014794,2]
[337642391,1725904271113,-1613.99,0.00014794,2]
[337642392,1725904271123,-2712.49,0.00014794,2]
[337642393,1725904271133,-2071.32,0.00014794,2]
[337642394,1725904271143,-975.77,0.00014794,2]
[337642395,1725904271152,-1613.99,0.00014794,2]
[337642396,1725904271162,-2712.49,0.00014794,2]
[337642397,1725904271171,-2071.32,0.00014794,2]
[337642398,1725904271181,-975.77,0.00014794,2]
[337642399,1725904271190,-1613.99,0.00014794,2]
[337642400,1725904271200,-2712.49,0.00014794,2]
[337642401,1725904271209,-2071.32,0.00014794,2]
[337642402,1725904271219,-1059.29,0.00014794,2]
[337642403,1725904271228,-1613.99,0.00014794,2]
[337642404,1725904271238,-975.77,0.00014794,2]
[337642405,1725904271251,-2071.32,0.00014794,2]
[337642406,1725904271261,-2712.49,0.00014794,2]
[337642407,1725904271271,-1059.29,0.00014794,2]
[337642408,1725904271281,-975.77,0.00014794,2]
[337642409,1725904271291,-2917.35,0.00014794,2]
[337642410,1725904271301,-2071.32,0.00014794,2]
[337642411,1725904271311,-1059.29,0.00014794,2]
[337642412,1725904271322,-2712.49,0.00014794,2]
[337642413,1725904271331,-975.77,0.00014794,2]
[337642414,1725904271341,-1613.99,0.00014794,2]
[337642415,1725904271350,-5900.66,0.00014794,2]
[337642416,1725904271360,-1059.29,0.00014794,2]
[337642417,1725904271369,-2712.49,0.00014794,2]
[337642418,1725904271379,-2071.32,0.00014794,2]
[337642419,1725904271389,-975.77,0.00014794,2]
[337642420,1725904271398,-1613.99,0.00014794,2]
[337642421,1725904271408,-1059.29,0.00014794,2]
[337642422,1725904271418,-2071.32,0.00014794,2]
[337642423,1725904271427,-975.77,0.00014794,2]
[337642424,1725904271437,-1613.99,0.00014794,2]
[337642425,1725904271446,-572.04438554,0.00014794,2]
[337642426,1725904271456,-2712.49,0.00014794,2]
[337642427,1725904271465,-1059.29,0.00014794,2]
[337642428,1725904271475,-2071.32,0.00014794,2]
[337642429,1725904271484,-2917.35,0.00014794,2]
[337642430,1725904271494,-975.77,0.00014794,2]
[337642431,1725904271503,-1613.99,0.00014794,2]
[337642432,1725904271514,-2712.49,0.00014794,2]
[337642433,1725904271524,-1059.29,0.00014794,2]
[337642434,1725904271534,-2071.32,0.00014794,2]
[337642435,1725904271544,-2917.35,0.00014794,2]
[337642436,1725904271554,-975.77,0.00014794,2]
[337642437,1725904271564,-1613.99,0.00014794,2]
[337642438,1725904271574,-2712.49,0.00014794,2]
[337642439,1725904271583,-1059.29,0.00014794,2]
[337642440,1725904271593,-2071.32,0.00014794,2]
[337642441,1725904271603,-2917.35,0.00014794,2]
[337642442,1725904271613,-1613.99,0.00014794,2]
[337642443,1725904271623,-975.77,0.00014794,2]
[337642444,1725904271634,-2712.49,0.00014794,2]
[337642445,1725904271644,-1059.29,0.00014794,2]
[337642446,1725904271653,-2071.32,0.00014794,2]
[337642447,1725904271663,-1613.99,0.00014794,2]
[337642448,1725904271673,-975.77,0.00014794,2]
[337642449,1725904271683,-2917.35,0.00014794,2]
[337642450,1725904271693,-2712.49,0.00014794,2]
[337642451,1725904271703,-1059.33,0.00014794,2]
[337642452,1725904271713,-2071.32,0.00014794,2]
[337642453,1725904271723,-975.77,0.00014794,2]
[337642454,1725904271733,-2917.35,0.00014794,2]
[337642455,1725904271742,-2712.49,0.00014794,2]
[337642456,1725904271752,-1613.99,0.00014794,2]
[337642457,1725904271762,-975.77,0.00014794,2]
[337642458,1725904271772,-2071.32,0.00014794,2]
[337642459,1725904271781,-2917.35,0.00014794,2]
[337642460,1725904271791,-1613.99,0.00014794,2]
[337642461,1725904271801,-2712.49,0.00014794,2]
[337642462,1725904271811,-2071.32,0.00014794,2]
[337642463,1725904271821,-975.77,0.00014794,2]
[337642464,1725904271830,-2917.35,0.00014794,2]
[337642465,1725904271840,-1613.99,0.00014794,2]
[337642466,1725904271850,-3375.93,0.00014794,2]
[337642467,1725904271860,-2712.49,0.00014794,2]
[337642468,1725904271869,-2071.32,0.00014794,2]
[337642469,1725904271879,-2917.35,0.00014794,2]
[337642470,1725904271889,-1613.99,0.00014794,2]
[337642471,1725904271899,-975.77,0.00014794,2]
[337642472,1725904271908,-2071.32,0.00014794,2]
[337642473,1725904271918,-2917.35,0.00014794,2]
[337642474,1725904271927,-3375.93,0.00014794,2]
[337642475,1725904271936,-975.77,0.00014794,2]
[337642476,1725904271946,-2917.35,0.00014794,2]
[337642477,1725904271956,-2071.32,0.00014794,2]
[337642478,1725904271965,-3375.93,0.00014794,2]
[337642479,1725904271975,-2712.49,0.00014794,2]
[337642480,1725904271985,-1613.99,0.00014794,2]
[337642481,1725904271994,-975.77,0.00014794,2]
[337642482,1725904272004,-2917.35,0.00014794,2]
[337642483,1725904272014,-2071.32,0.00014794,2]
[337642484,1725904272023,-3375.93,0.00014794,2]
[337642485,1725904272033,-1614.14048111,0.00014794,2]
[337642486,1725904272044,-2712.49,0.00014794,2]
[337642487,1725904272055,-2071.32210507,0.00014794,2]
[337642488,1725904272066,-975.91044486,0.00014794,2]
[337642489,1725904272077,-500.0,0.00014794,2]
[337642490,1725904272087,-2917.35,0.00014794,2]
[337642491,1725904272098,-2712.49,0.00014794,2]
[337642492,1725904272107,-3375.93,0.00014794,2]
[337642493,1725904272117,-500.0,0.00014794,2]
[337642494,1725904272126,-2917.35,0.00014794,2]
[337642495,1725904272135,-2712.49,0.00014794,2]
[337642496,1725904272144,-3375.93,0.00014794,2]
[337642497,1725904272154,-500.0,0.00014794,2]
[337642498,1725904272164,-2917.35,0.00014794,2]
[337642499,1725904272173,-2712.49,0.00014794,2]
[337642500,1725904272181,-3375.93,0.00014794,2]
[337642501,1725904272191,-500.0,0.00014794,2]
[337642502,1725904272201,-500.0,0.00014794,2]
[337642503,1725904272210,-2917.35,0.00014794,2]
[337642504,1725904272220,-2712.49,0.00014794,2]
[337642505,1725904272229,-151.0,0.00014794,2]
[337642506,1725904272240,-3375.93,0.00014794,2]
[337642507,1725904272252,-500.0,0.00014794,2]
[337642508,1725904272262,-500.0,0.00014794,2]
[337642509,1725904272272,-2917.35,0.00014794,2]
[337642510,1725904272283,-500.0,0.00014794,2]
[337642511,1725904272293,-500.0,0.00014794,2]
[337642512,1725904272303,-151.676645,0.00014794,2]
[337642513,1725904272314,-5900.66,0.00014794,2]
[337642514,1725904272326,-2190.53118316,0.00014794,2]
[337642515,1725904274689,-726.81881684,0.00014794,2]
[337642516,1725904274699,-500.0,0.00014794,2]
[337642517,1725904274709,-473.18118316,0.00014794,2]
[337642518,1725904274787,-26.81881684,0.00014794,2]
[337642519,1725904274797,-616.02118316,0.00014794,2]
[337642520,1725904275185,-278.5,0.00014794,2]
[337642521,1725904275198,-2015.94855758,0.00014794,2]
[337642522,1725904275537,-2990.19025926,0.00014794,2]
[337642523,1725904275548,-500.0,0.00014794,2]
[337642524,1725904275560,-500.0,0.00014794,2]
[337642525,1725904275569,-3375.93,0.00014794,2]
[337642526,1725904275580,-2917.35,0.00014794,2]
[337642527,1725904275590,-500.0,0.00014794,2]
[337642528,1725904275601,-500.0,0.00014794,2]
[337642529,1725904275612,-500.0,0.00014794,2]
[337642530,1725904275622,-5900.66,0.00014794,2]
[337642531,1725904275632,-3375.93,0.00014794,2]
[337642532,1725904275641,-2917.35,0.00014794,2]
[337642533,1725904275652,-500.0,0.00014794,2]
[337642534,1725904275661,-514.53,0.00014794,2]
[337642535,1725904275671,-500.0,0.00014794,2]
[337642536,1725904275680,-5900.66,0.00014794,2]
[337642537,1725904275689,-3375.93,0.00014794,2]
[337642538,1725904275698,-500.0,0.00014794,2]
[337642539,1725904275707,-500.0,0.00014794,2]
[337642540,1725904275717,-2917.35,0.00014794,2]
[337642541,1725904275726,-514.53,0.00014794,2]
[337642542,1725904275735,-500.0,0.00014794,2]
[337642543,1725904275745,-5900.66,0.00014794,2]
[337642544,1725904275754,-500.0,0.00014794,2]
[337642545,1725904275769,-3375.93,0.00014794,2]
[337642546,1725904275779,-500.0,0.00014794,2]
[337642547,1725904275789,-2917.35,0.00014794,2]
[337642548,1725904275798,-514.53,0.00014794,2]
[337642549,1725904275808,-5900.66,0.00014794,2]
[337642550,1725904275817,-500.0,0.00014794,2]
[337642551,1725904275826,-500.0,0.00014794,2]
[337642552,1725904275835,-500.0,0.00014794,2]
[337642553,1725904275844,-2917.35,0.00014794,2]
[337642554,1725904275854,-514.53,0.00014794,2]
[337642555,1725904275863,-3375.93,0.00014794,2]
[337642556,1725904275872,-5900.66,0.00014794,2]
[337642557,1725904275881,-500.0,0.00014794,2]
[337642558,1725904275891,-210.1620474,0.00014794,2]
[337642559,1725904275900,-514.53,0.00014794,2]
[337642560,1725904275909,-2917.41433136,0.00014794,2]
[337642561,1725904275918,-3375.93,0.00014794,2]
[337642562,1725904275927,-5900.66,0.00014794,2]
[337642563,1725904275937,-500.0,0.00014794,2]
[337642564,1725904275946,-514.53,0.00014794,2]
[337642565,1725904275955,-3375.93,0.00014794,2]
[337642566,1725904275966,-1075.8313184,0.00014794,2]
[337642567,1725904276000,-895.88804481,0.00014794,2]
[337642568,1725904276458,-2498.82070866,0.00014794,2]
[337642569,1725904276470,-1430.11992813,0.00014794,2]
[337642570,1725904276479,-79.77128221,0.00014794,2]
[337642571,1725904276491,-420.22871779,0.00014794,2]
[337642572,1725904276501,-500.0,0.00014794,2]
[337642573,1725904276513,-514.53,0.00014794,2]
[337642574,1725904276523,-3375.93,0.00014794,2]
[337642575,1725904276532,-114.23128221,0.00014794,2]
[337642576,1725904276546,-271.99999994,0.00014794,2]
[337642577,1725904276557,-5514.42871785,0.00014794,2]
[337642578,1725904276567,-500.0,0.00014794,2]
[337642579,1725904276576,-500.0,0.00014794,2]
[337642580,1725904276586,-514.53,0.00014794,2]
[337642581,1725904276595,-3375.93,0.00014794,2]
[337642582,1725904276605,-5900.66,0.00014794,2]
[337642583,1725904276614,-500.0,0.00014794,2]
[337642584,1725904276624,-514.53,0.00014794,2]
[337642585,1725904276634,-500.0,0.00014794,2]
[337642586,1725904276643,-3375.93,0.00014794,2]
[337642587,1725904276653,-377.82811275,0.00014794,2]
[337642588,1725904276662,-5900.66,0.00014794,2]
[337642589,1725904276672,-514.53,0.00014794,2]
[337642590,1725904276681,-500.0,0.00014794,2]
[337642591,1725904276691,-5900.66,0.00014794,2]
[337642592,1725904276700,-500.0,0.00014794,2]
[337642593,1725904276710,-500.0,0.00014794,2]
[337642594,1725904276719,-2171.62,0.00014794,2]
[337642595,1725904276729,-1379.1326376,0.00014794,2]
[337642596,1725904277138,-1996.7973624,0.00014794,2]
[337642597,1725904277148,-5900.66,0.00014794,2]
[337642598,1725904277157,-500.0,0.00014794,2]
[337642599,1725904277166,-2171.62,0.00014794,2]
[337642600,1725904277176,-5900.66,0.00014794,2]
[337642601,1725904277185,-2171.62,0.00014794,2]
[337642602,1725904277196,-3375.93,0.00014794,2]
[337642603,1725904277205,-5900.66,0.00014794,2]
[337642604,1725904277214,-500.0,0.00014794,2]
[337642605,1725904277224,-2171.62,0.00014794,2]
[337642606,1725904277233,-5900.66,0.00014794,2]
[337642607,1725904277244,-3375.93,0.00014794,2]
[337642608,1725904277256,-430.72300648,0.00014794,2]
[337642609,1725904277268,-2171.62,0.00014794,2]
[337642610,1725904277278,-5900.66,0.00014794,2]
[337642611,1725904277288,-3375.93,0.00014794,2]
[337642612,1725904277297,-2171.62,0.00014794,2]
[337642613,1725904277307,-514.53,0.00014794,2]
[337642614,1725904277316,-5900.66,0.00014794,2]
[337642615,1725904277326,-3375.93,0.00014794,2]
[337642616,1725904277335,-514.53,0.00014794,2]
[337642617,1725904277344,-2171.62,0.00014794,2]
[337642618,1725904277354,-5900.66,0.00014794,2]
[337642619,1725904277443,-3375.94901385,0.00014794,2]
[337642620,1725904277452,-5900.66,0.00014794,2]
[337642621,1725904277462,-500.0,0.00014794,2]
[337642622,1725904277473,-2171.62,0.00014794,2]
[337642623,1725904277482,-500.0,0.00014794,2]
[337642624,1725904277492,-514.53,0.00014794,2]
[337642625,1725904277501,-5900.66,0.00014794,2]
[337642626,1725904277513,-2171.62,0.00014794,2]
[337642627,1725904277523,-500.0,0.00014794,2]
[337642628,1725904277533,-514.53,0.00014794,2]
[337642629,1725904277543,-2171.62,0.00014794,2]
[337642630,1725904277553,-514.53,0.00014794,2]
[337642631,1725904277562,-500.0,0.00014794,2]
[337642632,1725904277571,-5900.73874332,0.00014794,2]
[337642633,1725904277581,-2171.62,0.00014794,2]
[337642634,1725904277591,-500.0,0.00014794,2]
[337642635,1725904277601,-514.53,0.00014794,2]
[337642636,1725904277610,-1337.28505798,0.00014794,2]
[337642637,1725904277643,-834.33494202,0.00014794,2]
[337642638,1725904277653,-500.0,0.00014794,2]
[337642639,1725904277662,-514.53,0.00014794,2]
[337642640,1725904277671,-2171.62,0.00014794,2]
[337642641,1725904277681,-500.0,0.00014794,2]
[337642642,1725904277690,-514.53,0.00014794,2]
[337642643,1725904277700,-2171.62,0.00014794,2]
[337642644,1725904277709,-290.05169728,0.00014794,2]
[337642645,1725904277724,-831.659,0.00014794,2]
[337642646,1725904277735,-788.36999,0.00014794,2]
[337642647,1725904277807,-261.53931272,0.00014794,2]
[337642648,1725904277816,-71.47546429,0.00014794,2]
[337642649,1725904277833,-443.05453571,0.00014794,2]
[337642650,1725904277842,-2496.17,0.00014794,2]
[337642651,1725904277852,-514.53,0.00014794,2]
[337642652,1725904277863,-2171.62,0.00014794,2]
[337642653,1725904277873,-2496.17,0.00014794,2]
[337642654,1725904277883,-2171.62,0.00014794,2]
[337642655,1725904277894,-514.53,0.00014794,2]
[337642656,1725904277904,-500.0,0.00014794,2]
[337642657,1725904277915,-2496.17,0.00014794,2]
[337642658,1725904277925,-514.53,0.00014794,2]
[337642659,1725904277935,-2171.62,0.00014794,2]
[337642660,1725904277945,-2496.17,0.00014794,2]
[337642661,1725904277956,-2334.01,0.00014794,2]
[337642662,1725904277966,-2171.62,0.00014794,2]
[337642663,1725904277978,-164.45628775,0.00014794,2]
[337642664,1725904277988,-2496.17,0.00014794,2]
[337642665,1725904277998,-2334.01,0.00014794,2]
[337642666,1725904278007,-2171.62,0.00014794,2]
[337642667,1725904278017,-514.53,0.00014794,2]
[337642668,1725904278027,-2496.17,0.00014794,2]
[337642669,1725904278036,-2334.01,0.00014794,2]
[337642670,1725904278045,-514.72568926,0.00014794,2]
[337642671,1725904278055,-2171.62,0.00014794,2]
[337642672,1725904278064,-2496.17,0.00014794,2]
[337642673,1725904278073,-2334.01,0.00014794,2]
[337642674,1725904278083,-2171.62,0.00014794,2]
[337642675,1725904278091,-2496.17,0.00014794,2]
[337642676,1725904278102,-2334.01,0.00014794,2]
[337642677,1725904278111,-2171.62,0.00014794,2]
[337642678,1725904278120,-2496.17,0.00014794,2]
[337642679,1725904278129,-2334.01,0.00014794,2]
[337642680,1725904278138,-2171.85,0.00014794,2]
[337642681,1725904278147,-2496.17,0.00014794,2]
[337642682,1725904278156,-2334.01,0.00014794,2]
[337642683,1725904278166,-2496.17,0.00014794,2]
[337642684,1725904278175,-2334.01,0.00014794,2]
[337642685,1725904278185,-2334.01,0.00014794,2]
[337642686,1725904278195,-2334.01,0.00014794,2]
[337642687,1725904278204,-2496.17,0.00014794,2]
[337642688,1725904278213,-1710.36691612,0.00014794,2]
[337642689,1725904278248,-623.64308388,0.00014794,2]
[337642690,1725904278257,-2496.17,0.00014794,2]
[337642691,1725904278268,-297.53084813,0.00014794,2]
[337642692,1725904278280,-1215.30012531,0.00014794,2]
[337642693,1725904312880,150.0,0.00011,2]
[337642694,1725904312900,150.0,0.00011,2]
[337642695,1725904312921,150.0,0.00011,2]
[337642696,1725904312944,300.0,0.00011,2]
[337642697,1725904434437,186.58,0.00010959,2]
[337642698,1725904556033,150.0,0.00011555,2]
[337642699,1725904556055,150.0,0.00011555,2]
[337642700,1725904556076,150.0,0.00011555,2]
[337642701,1725904556097,71.91,0.00011555,2]
[337642705,1725904852438,500.0,0.00027397,120]
[337642706,1725904990272,150.0,0.00010959,2]
[337642707,1725904990293,10.76,0.00010959,2]
[337642708,1725905161510,150.0,0.00010887,2]
[337642709,1725905161535,150.0,0.00010887,2]
[337642710,1725905161560,150.0,0.00010887,2]
[337642711,1725905161583,97.71,0.00010887,2]
[337642720,1725905432504,-250.0,0.000123,2]
[337642721,1725905432513,-200.11842444,0.00012568,2]
[337642722,1725905432523,-2598.28,0.00012644,2]
[337642723,1725905432532,-243.33108219,0.00012668,2]
[337642724,1725905432544,-1324.26891781,0.00012668,2]
[337642725,1725905432553,-3448.85085794,0.00012668,2]
[337642726,1725905432565,-2035.89616596,0.00012668,2]
[337642727,1725905432582,-523.7229761,0.00012668,2]
[337642728,1725905432592,-266.54,0.00012668,2]
[337642729,1725905432601,-2713.81192684,0.00012696,2]
[337642730,1725905432614,-21186.18807316,0.00012696,2]
[337642731,1725905432623,-155.19,0.00012713,2]
[337642733,1725905432633,-150.0,0.00012716,2]
[337642735,1725905432642,-450.0,0.00012716,2]
[337642737,1725905432652,-250.0,0.00012769,2]
[337642739,1725905432662,-250.0,0.00012832,2]
[337642741,1725905432672,-200.0,0.00012832,2]
[337642742,1725905432681,-956.07,0.00012834,2]
[337642744,1725905432691,-1492.01,0.000129,2]
[337642745,1725905432701,-1000.0,0.000129,2]
[337642746,1725905432710,-597.96,0.00012901,2]
[337642747,1725905432720,-857.33,0.00012901,2]
[337642748,1725905432729,-800.0,0.00013,2]
[337642750,1725905432739,-150.0,0.00013,2]
[337642752,1725905432748,-2250.67,0.00013024,2]
[337642754,1725905432758,-173.1,0.0001309,2]
[337642756,1725905432767,-9197.78670927,0.00013117,2]
[337642758,1725905432776,-2000.0,0.00013135,2]
[337642760,1725905432786,-150.0,0.00013137,2]
[337642762,1725905432796,-500.0,0.00013138,2]
[337642764,1725905432806,-499.99,0.00013138,2]
[337642765,1725905432815,-250.0,0.00013145,2]
[337642766,1725905432824,-547.71,0.00013151,2]
[337642767,1725905432833,-155.49,0.00013183,2]
[337642768,1725905432842,-300.0,0.00013185,2]
[337642769,1725905432851,-155.017,0.00013185,2]
[337642770,1725905432861,-155.49,0.00013188,2]
[337642771,1725905432870,-155.49,0.00013194,2]
[337642772,1725905432879,-77.97781973,0.00013199,2]
[337642773,1725905432891,-77.51218027,0.00013199,2]
[337642774,1725905432900,-155.49,0.00013205,2]
[337642775,1725905432909,-166.82,0.00013208,2]
[337642776,1725905432921,-846.89051155,0.00013208,2]
[337642777,1725905432932,-153.10948845,0.00013208,2]
[337642778,1725905432941,-155.49,0.0001321,2]
[337642779,1725905432950,-180.52,0.00013215,2]
[337642780,1725905432959,-155.49,0.00013216,2]
[337642781,1725905432969,-155.49,0.00013221,2]
[337642782,1725905432978,-155.49,0.00013227,2]
[337642783,1725905432987,-155.49,0.00013232,2]
[337642784,1725905432996,-464.6422,0.00013233,2]
[337642785,1725905433005,-155.49,0.00013238,2]
[337642786,1725905433015,-155.49,0.00013243,2]
[337642787,1725905433024,-155.49,0.00013249,2]
[337642788,1725905433033,-179.36,0.00013264,2]
[337642789,1725905433042,-150.0,0.0001329,2]
[337642790,1725905433051,-150.0,0.0001329,2]
[337642791,1725905433061,-245.55012574,0.0001329,2]
[337642792,1725905433070,-170.77238643,0.0001329,2]
[337642793,1725905433079,-150.0,0.0001329,2]
[337642794,1725905433089,-273.58711516,0.0001329,2]
[337642795,1725905433098,-193.63511683,0.0001329,2]
[337642796,1725905433107,-150.0,0.0001329,2]
[337642797,1725905433117,-255.30444537,0.0001329,2]
[337642798,1725905433126,-150.0,0.0001329,2]
[337642799,1725905433135,-150.16900829,0.0001329,2]
[337642800,1725905433145,-150.0,0.0001329,2]
[337642801,1725905433154,-162.94870635,0.0001329,2]
[337642802,1725905433164,-243.20371268,0.0001329,2]
[337642803,1725905433173,-150.0,0.00013308,2]
[337642804,1725905433182,-150.0,0.00013326,2]
[337642805,1725905433192,-150.0,0.0001334,2]
[337642806,1725905433201,-150.0,0.00013344,2]
[337642807,1725905433210,-150.0,0.00013361,2]
[337642808,1725905433219,-150.0,0.00013362,2]
[337642809,1725905433228,-150.0,0.00013389,2]
[337642810,1725905433237,-150.0,0.00013431,2]
[337642811,1725905433246,-150.0,0.00013438,2]
[337642812,1725905433256,-150.0,0.00013487,2]
[337642813,1725905433266,-150.0,0.00013501,2]
[337642814,1725905433275,-150.0,0.00013501,2]
[337642815,1725905433284,-150.0,0.00013537,2]
[337642816,1725905433293,-150.0,0.00013572,2]
[337642817,1725905433303,-150.0,0.00013586,2]
[337642818,1725905433313,-150.0,0.00013635,2]
[337642819,1725905433322,-150.0,0.00013642,2]
[337642820,1725905433331,-150.0,0.00013684,2]
[337642821,1725905433341,-164.56,0.00013699,2]
[337642822,1725905433351,-2751.0,0.00013699,2]
[337642823,1725905433360,-162.3,0.00013699,2]
[337642824,1725905433370,-200.0,0.00013699,2]
[337642825,1725905433379,-150.0,0.00013712,2]
[337642826,1725905433388,-150.0,0.00013712,2]
[337642827,1725905433397,-9462.93709809,0.00013725,2]
[337642828,1725905433409,-537.06290191,0.00013725,2]
[337642829,1725905433421,-150.0,0.00013733,2]
[337642830,1725905433430,-150.0,0.00013783,2]
[337642831,1725905433440,-150.0,0.00013783,2]
[337642832,1725905433449,-166.32,0.0001379,2]
[337642833,1725905433459,-150.0,0.00013832,2]
[337642834,1725905433468,-145.20139176,0.00013847,2]
[337642835,1725905433480,-445.22757875,0.00013847,2]
[337642836,1725905433491,-232.96501481,0.00013847,2]
[337642837,1725905433501,-150.0,0.00013853,2]
[337642838,1725905433510,-150.0,0.00013881,2]
[337642839,1725905433520,-200.0,0.000139,5]
[337642840,1725905433531,-150.0,0.00013923,2]
[337642841,1725905433541,-150.0,0.00013923,2]
[337642842,1725905433551,-150.0,0.0001393,2]
[337642843,1725905433561,-854.42,0.00013973,2]
[337642844,1725905433574,-150.0,0.0001398,2]
[337642845,1725905433587,-150.0,0.00013994,2]
[337642846,1725905433597,-500.0,0.00014,5]
[337642847,1725905433608,-150.0,0.00014029,2]
[337642848,1725905433619,-150.0,0.00014029,2]
[337642849,1725905433629,-791.84,0.00014055,2]
[337642850,1725905433639,-422.04,0.00014055,2]
[337642851,1725905433651,-150.0,0.00014064,2]
[337642852,1725905433661,-150.0,0.00014078,2]
[337642853,1725905433673,-700.0,0.000141,5]
[337642854,1725905433683,-150.0,0.00014127,2]
[337642855,1725905433693,-150.0,0.00014134,2]
[337642856,1725905433704,-150.0,0.00014134,2]
[337642857,1725905433713,-150.0,0.00014176,2]
[337642858,1725905433723,-357.37,0.00014192,2]
[337642859,1725905433733,-1000.0,0.000142,5]
[337642860,1725905433742,-150.0,0.00014205,2]
[337642861,1725905433751,-150.0,0.00014226,2]
[337642862,1725905433760,-150.0,0.00014241,2]
[337642863,1725905433770,-266.54,0.00014252,2]
[337642864,1725905433780,-150.0,0.00014275,2]
[337642865,1725905433789,-150.0,0.00014275,2]
[337642866,1725905433798,-155.03487565,0.000143,5]
[337642867,1725905433810,-497.48514,0.000143,5]
[337642868,1725905433822,-553.61713197,0.000143,5]
[337642869,1725905433833,-93.86285238,0.000143,5]
[337642870,1725905433842,-150.0,0.00014324,2]
[337642871,1725905433852,-1143.0515,0.00014339,2]
[337642872,1725905433861,-506.6185,0.00014339,2]
[337642873,1725905433871,-150.0,0.00014345,2]
[337642874,1725905433883,-150.0,0.00014345,2]
[337642875,1725905433893,-150.0,0.00014373,2]
[337642876,1725905433903,-200.0,0.000144,5]
[337642877,1725905433912,-150.0,0.00014416,2]
[337642878,1725905433924,-150.0,0.00014423,2]
[337642879,1725905433934,-213.9968,0.00014446,2]
[337642880,1725905433943,-150.0,0.00014472,2]
[337642881,1725905433953,-826.5722,0.00014484,2]